[Event "Eurasia Open Cup 2019"]
[Site "Ekaterinburg"]
[Date "2019.08.05"]
[Round "5.26"]
[White "Kolay, Alex"]
[Black "Ulybin, Mikhail"]
[Result "0-1"]
[ECO "A70"]
[WhiteElo "2229"]
[BlackElo "2469"]
[Annotator "ChessBase"]
[PlyCount "118"]
[EventDate "2019.07.31"]
[EventType "swiss"]
[EventCountry "RUS"]
[SourceTitle "playchess.com"]
[Source "ChessBase"]
[SourceQuality "1"]
[TimeControl "5400+30"]

1. d4 {[%emt 0:00:00]} e6 {[%emt 0:03:23]} 2. c4 {[%emt 0:00:00]} Nf6 {[%emt 0:00:49]} 3. Nf3 {[%emt 0:00:00]} c5 {[%emt 0:01:30]} 4. d5 {[%emt 0:00:00]} exd5 {[%emt 0:01:16]} 5. cxd5 {[%emt 0:00:00]} d6 {[%emt 0:00:30]} 6. Nc3 {[%emt 0:00:35]} g6 {[%emt 0:00:43]} 7. e4 {[%emt 0:00:12]} Bg7 {[%emt 0:02:10]} 8. Bd3 {[%emt 0:00:00]} a6 {[%emt 0:06:06]} 9. a4 {[%emt 0:09:36]} Bg4 {[%emt 0:00:45]} 10. h3 {[%emt 0:00:36]} Bxf3 {[%emt 0:00:22]} 11. Qxf3 {[%emt 0:00:31]} Nbd7 {[%emt 0:02:15]} 12. Bf4 {[%emt 0:01:39]} Nh5 {[%emt 0:32:45]} 13. Bh2 {[%emt 0:12:07]} Ne5 {[%emt 0:03:12]} 14. Qe2 {[%emt 0:04:31]} Qg5 {[%emt 0:02:06]} 15. g3 {[%emt 0:07:10]} Qf6 {[%emt 0:12:26]} 16. f4 {[%emt 0:01:44]} Nxd3+ {[%emt 0:00:39]} 17. Qxd3 {[%emt 0:00:02]} O-O {[%emt 0:01:41]} 18. Rd1 {[%emt 0:10:36]} Rfe8 {[%emt 0:12:25]} 19. Kf2 {[%emt 0:06:03]} Qd4+ {[%emt 0:07:32]} 20. Kf3 {[%emt 0:00:54]} Qb4 {[%emt 0:01:24]} 21. Qc2 {[%emt 0:04:28]} b5 {[%emt 0:02:38]} 22. Rhe1 {[%emt 0:04:10]} Bd4 {[%emt 0:02:42]} 23. Bg1 {[%emt 0:22:57]} Bg7 {[%emt 0:00:25]} 24. Bh2 {[%emt 0:00:39]} Nf6 {[%emt 0:00:53]} 25. Ra1 {[%emt 0:08:06]} Nd7 {[%emt 0:00:20]} 26. axb5 {[%emt 0:04:52]} axb5 {[%emt 0:00:08]} 27. Rxa8 {[%emt 0:00:02]} Rxa8 {[%emt 0:00:05]} 28. g4 {[%emt 0:00:20]} Bd4 {[%emt 0:01:35]} 29. Bg1 {[%emt 0:01:30]} Qc4 {[%emt 0:00:31]} 30. Qe2 {[%emt 0:00:46]} Qxe2+ {[%emt 0:00:41]} 31. Kxe2 {[%emt 0:00:00]} Bxc3 {[%emt 0:00:29]} 32. bxc3 {[%emt 0:00:04]} f6 {[%emt 0:00:31]} 33. Rb1 {[%emt 0:01:17]} Ra5 {[%emt 0:00:17]} 34. Kf3 {[%emt 0:00:21]} Kf7 {[%emt 0:00:49]} 35. h4 {[%emt 0:00:29]} h6 {[%emt 0:00:21]} 36. Be3 {[%emt 0:00:37]} f5 {[%emt 0:00:16]} 37. gxf5 {[%emt 0:00:33]} gxf5 {[%emt 0:00:34]} 38. e5 {[%emt 0:00:13]} dxe5 {[%emt 0:00:08]} 39. fxe5 {[%emt 0:00:39]} Nxe5+ {[%emt 0:00:06]} 40. Kg3 {[%emt 0:00:00]} b4 {[%emt 0:01:24]} 41. cxb4 {[%emt 0:00:00]} Ra3 {[%emt 0:00:18]} 42. bxc5 {[%emt 0:01:43]} Nc4 {[%emt 0:00:24]} 43. Kf4 {[%emt 0:00:12]} Nxe3 {[%emt 0:00:18]} 44. Ke5 {[%emt 0:00:54]} Rd3 {[%emt 0:00:35]} 45. d6 {[%emt 0:00:00]} Rd5+ {[%emt 0:00:27]} 46. Kf4 {[%emt 0:00:00]} Nc4 {[%emt 0:00:56]} 47. h5 {[%emt 0:01:38]} Rxc5 {[%emt 0:00:22]} 48. Rb7+ {[%emt 0:00:00]} Kf6 {[%emt 0:01:04]} 49. Rh7 {[%emt 0:00:19]} Nxd6 {[%emt 0:00:15]} 50. Rxh6+ {[%emt 0:00:35]} Ke7 {[%emt 0:00:08]} 51. Rg6 {[%emt 0:00:12]} Rc4+ {[%emt 0:00:43]} 52. Ke5 {[%emt 0:00:48]} Re4+ {[%emt 0:00:24]} 53. Kd5 {[%emt 0:00:05]} Ne8 {[%emt 0:00:14]} 54. h6 {[%emt 0:00:34]} Nf6+ {[%emt 0:00:42]} 55. Kc5 {[%emt 0:00:00]} Rg4 {[%emt 0:00:57]} 56. h7 {[%emt 0:00:44]} Nxh7 {[%emt 0:00:27]} 57. Rh6 {[%emt 0:01:05]} Nf6 {[%emt 0:00:12]} 58. Rh2 {[%emt 0:00:10]} Ke6 {[%emt 0:00:17]} 59. Re2+ {[%emt 0:00:05]} Re4 {[%emt 0:00:00]} 0-1

[Event "Eurasia Open Cup 2019"]
[Site "Ekaterinburg"]
[Date "2019.08.05"]
[Round "5.27"]
[White "Lysenko, Margarita"]
[Black "Savitskiy, Sergey"]
[Result "1-0"]
[ECO "E69"]
[WhiteElo "2224"]
[BlackElo "2418"]
[Annotator "NA"]
[PlyCount "119"]
[EventDate "2019.07.31"]
[EventType "swiss"]
[EventCountry "RUS"]
[SourceTitle "playchess.com"]
[Source "ChessBase"]
[SourceQuality "1"]
[TimeControl "5400+30"]

1. d4 {[%emt 0:00:00]} Nf6 {[%emt 0:00:00]} 2. c4 {[%emt 0:00:00]} g6 {[%emt 0:00:00]} 3. Nf3 {[%emt 0:00:00]} Bg7 {[%emt 0:00:00]} 4. g3 {[%emt 0:00:00]} O-O {[%emt 0:00:00]} 5. Bg2 {[%emt 0:00:00]} d6 {[%emt 0:00:00]} 6. O-O {[%emt 0:00:00]} Nbd7 {[%emt 0:00:11]} 7. Nc3 {[%emt 0:00:36]} e5 {[%emt 0:00:08]} 8. e4 {[%emt 0:00:07]} exd4 {[%emt 0:00:24]} 9. Nxd4 {[%emt 0:00:00]} Nc5 {[%emt 0:00:07]} 10. Re1 {[%emt 0:02:11]} a5 {[%emt 0:00:42]} 11. h3 {[%emt 0:00:46]} Re8 {[%emt 0:05:49]} 12. Qc2 {[%emt 0:01:19]} c6 {[%emt 0:12:55]} 13. Be3 {[%emt 0:03:24]} a4 {[%emt 0:02:30]} 14. Rad1 {[%emt 0:00:57]} Nfd7 {[%emt 0:07:43]} 15. f4 {[%emt 0:06:32]} Qa5 {[%emt 0:01:52]} 16. Bf2 {[%emt 0:12:55]} Nb6 {[%emt 0:03:29]} 17. Bf1 {[%emt 0:06:28]} Qb4 {[%emt 0:04:11]} 18. a3 {[%emt 0:01:25]} Qa5 {[%emt 0:00:00]} 19. Nb1 {[%emt 0:10:54]} Bd7 {[%emt 0:07:00]} 20. b4 {[%emt 0:31:54]} axb3 {[%emt 0:00:05]} 21. Nxb3 {[%emt 0:00:10]} Qa4 {[%emt 0:19:44]} 22. Rxd6 {[%emt 0:07:14]} Nxe4 {[%emt 0:03:46]} 23. Rxe4 {[%emt 0:02:32]} Rxe4 {[%emt 0:00:18]} 24. Bxb6 {[%emt 0:03:39]} Bf5 {[%emt 0:00:00]} 25. Qd1 {[%emt 0:06:32]} Rae8 {[%emt 0:03:27]} 26. Rd8 {[%emt 0:00:39]} h5 {[%emt 0:06:52]} 27. Rxe8+ {[%emt 0:02:08]} Rxe8 {[%emt 0:00:27]} 28. N1d2 {[%emt 0:00:28]} Qxa3 {[%emt 0:01:20]} 29. Bf2 {[%emt 0:01:05]} Qb2 {[%emt 0:03:11]} 30. Qc1 {[%emt 0:00:31]} Qa2 {[%emt 0:01:14]} 31. Nd4 {[%emt 0:00:00]} Bd7 {[%emt 0:02:43]} 32. c5 {[%emt 0:00:44]} Qa5 {[%emt 0:03:48]} 33. N2f3 {[%emt 0:00:00]} Ra8 {[%emt 0:04:25]} 34. Ne5 {[%emt 0:00:38]} Be8 {[%emt 0:00:11]} 35. Qc4 {[%emt 0:00:39]} Qa4 {[%emt 0:01:23]} 36. Kg2 {[%emt 0:00:31]} Bf8 {[%emt 0:01:28]} 37. Nxg6 {[%emt 0:00:27]} Qxc4 {[%emt 0:00:22]} 38. Bxc4 {[%emt 0:00:01]} Bxc5 {[%emt 0:00:12]} 39. Ne5 {[%emt 0:01:10]} Rd8 {[%emt 0:02:27]} 40. Ne6 {[%emt 0:00:00]} fxe6 {[%emt 0:01:41]} 41. Bxe6+ {[%emt 0:00:07]} Kg7 {[%emt 0:00:03]} 42. Bxc5 {[%emt 0:00:06]} Rd2+ {[%emt 0:00:23]} 43. Kf3 {[%emt 0:00:16]} Rc2 {[%emt 0:00:27]} 44. Nd3 {[%emt 0:00:38]} Bf7 {[%emt 0:01:28]} 45. Bxf7 {[%emt 0:01:14]} Kxf7 {[%emt 0:00:04]} 46. g4 {[%emt 0:00:00]} Rc3 {[%emt 0:01:58]} 47. Ke4 {[%emt 0:01:21]} Rc4+ {[%emt 0:00:34]} 48. Ke5 {[%emt 0:00:00]} Rc3 {[%emt 0:00:00]} 49. Kd4 {[%emt 0:00:47]} Rc2 {[%emt 0:00:24]} 50. f5 {[%emt 0:00:35]} hxg4 {[%emt 0:01:35]} 51. hxg4 {[%emt 0:00:09]} Kf6 {[%emt 0:00:06]} 52. Bb6 {[%emt 0:01:03]} Kg5 {[%emt 0:01:51]} 53. Ne5 {[%emt 0:00:25]} Rd2+ {[%emt 0:00:29]} 54. Ke4 {[%emt 0:00:15]} Rd5 {[%emt 0:00:29]} 55. Be3+ {[%emt 0:00:00]} Kf6 {[%emt 0:00:06]} 56. g5+ {[%emt 0:00:23]} Ke7 {[%emt 0:00:00]} 57. g6 {[%emt 0:00:15]} Kf6 {[%emt 0:01:07]} 58. Ng4+ {[%emt 0:00:00]} Ke7 {[%emt 0:00:11]} 59. Bg5+ {[%emt 0:00:19]} Kf8 {[%emt 0:00:14]} 60. Ne5 {[%emt 0:00:14]} 1-0

[Event "Eurasia Open Cup 2019"]
[Site "Ekaterinburg"]
[Date "2019.08.05"]
[Round "5.28"]
[White "Chigaeva, Anastasia"]
[Black "Pogromsky, Mikhail"]
[Result "0-1"]
[ECO "D95"]
[WhiteElo "2193"]
[BlackElo "2414"]
[Annotator "NA"]
[PlyCount "156"]
[EventDate "2019.07.31"]
[EventType "swiss"]
[EventCountry "RUS"]
[SourceTitle "playchess.com"]
[Source "ChessBase"]
[SourceQuality "1"]
[TimeControl "5400+30"]

1. d4 {[%emt 0:00:00]} Nf6 {[%emt 0:00:00]} 2. c4 {[%emt 0:00:00]} g6 {[%emt 0:00:00]} 3. Nc3 {[%emt 0:00:00]} d5 {[%emt 0:00:02]} 4. e3 {[%emt 0:01:06]} Bg7 {[%emt 0:00:00]} 5. Qb3 {[%emt 0:00:30]} c6 {[%emt 0:00:16]} 6. Nf3 {[%emt 0:02:36]} O-O {[%emt 0:00:09]} 7. Qa3 $146 {[%emt 0:05:19] D95: Grünfeld: 4 Nf3 Bg7 5 e3 0-0 6 Qb3} ({Predecessor:} 7. Be2 e6 8. O-O Nbd7 9. Rd1 a6 10. a4 a5 11. Qc2 Re8 12. b3 b6 13. cxd5 exd5 14. Ba3 Bb7 15. Rac1 Bh6 {½-½ (50) Zubov,A (2597)-Kamsky,G (2666) St Petersburg 2018}) 7... a5 {[%emt 0:04:11]} 8. b3 {[%emt 0:01:34]} Na6 {[%emt 0:00:31]} 9. Be2 {[%emt 0:02:08]} Nb4 {[%emt 0:04:49]} 10. Qb2 {[%emt 0:00:23]} Bf5 {[%emt 0:04:22]} 11. O-O {[%emt 0:01:19]} Nd3 {[%emt 0:00:01]} 12. Qd2 {[%emt 0:01:57]} Nxc1 {[%emt 0:00:43]} 13. Raxc1 {[%emt 0:00:09]} Ne4 {[%emt 0:01:07]} 14. Qb2 {[%emt 0:02:50]} Nxc3 {[%emt 0:03:21]} 15. Qxc3 {[%emt 0:04:04]} Qd6 {[%emt 0:06:31]} 16. Rfd1 {[%emt 0:06:09]} Rfc8 {[%emt 0:05:07]} 17. c5 {[%emt 0:04:52]} Qc7 {[%emt 0:03:31]} 18. Ne5 {[%emt 0:03:10]} f6 {[%emt 0:02:16]} 19. Nd3 {[%emt 0:01:34]} e5 $11 {[%emt 0:00:46]} 20. Nb2 {[%emt 0:02:21]} e4 {[%emt 0:15:04]} 21. Na4 {[%emt 0:00:56]} Rf8 {[%emt 0:00:26]} 22. Nb6 {[%emt 0:01:33]} Ra7 {[%emt 0:00:26]} 23. a3 {[%emt 0:04:36]} Be6 {[%emt 0:00:58]} 24. f3 {[%emt 0:10:19]} exf3 {[%emt 0:02:41]} 25. gxf3 {[%emt 0:04:17]} f5 {[%emt 0:05:06]} 26. f4 {[%emt 0:03:32]} h6 {[%emt 0:01:59]} 27. Qe1 {[%emt 0:03:47]} g5 {[%emt 0:13:27]} 28. Qg3 {[%emt 0:00:55]} g4 {[%emt 0:01:58]} 29. h4 {[%emt 0:10:00]} Bf6 {[%emt 0:02:54]} 30. Kf2 {[%emt 0:01:17]} Qe7 {[%emt 0:01:24]} 31. Rh1 {[%emt 0:00:11]} Bf7 {[%emt 0:01:26]} 32. Bd3 {[%emt 0:01:15]} Bg6 {[%emt 0:00:31]} 33. h5 {[%emt 0:03:01]} Bh7 {[%emt 0:00:09]} 34. Rce1 {[%emt 0:02:25]} Kf7 {[%emt 0:04:51]} 35. Kg2 {[%emt 0:01:28]} Rg8 {[%emt 0:00:36]} 36. Kf2 {[%emt 0:00:34]} Qe8 {[%emt 0:02:25]} 37. Kg2 {[%emt 0:01:11]} Qe6 {[%emt 0:01:40]} 38. Qf2 {[%emt 0:03:40]} Qe7 {[%emt 0:02:34]} 39. Qg3 {[%emt 0:00:29]} Ke6 {[%emt 0:01:21]} 40. Qf2 {[%emt 0:00:57]} Qf8 {[%emt 0:03:16]} 41. Qc2 {[%emt 0:03:13]} Bd8 {[%emt 0:01:50]} 42. Na4 {[%emt 0:06:39]} Bc7 {[%emt 0:01:12]} 43. Nb2 {[%emt 0:00:59]} Ra8 {[%emt 0:00:40]} 44. Be2 {[%emt 0:01:02]} Rg7 {[%emt 0:01:18]} 45. Nd3 {[%emt 0:00:47]} Bg8 {[%emt 0:00:01]} 46. Ne5 {[%emt 0:00:45]} Bxe5 {[%emt 0:00:09]} 47. dxe5 {[%emt 0:00:49]} Ke7 {[%emt 0:00:55]} 48. Bd3 {[%emt 0:00:00]} Be6 {[%emt 0:00:01]} 49. Rb1 {[%emt 0:00:38]} Qc8 {[%emt 0:00:59]} 50. Qf2 {[%emt 0:00:35]} Rf7 {[%emt 0:00:22]} 51. Qc2 {[%emt 0:00:50]} Qd8 {[%emt 0:00:39]} 52. Kg3 {[%emt 0:00:00]} Kf8 {[%emt 0:02:16]} 53. Rhd1 {[%emt 0:00:19]} Qc7 {[%emt 0:00:35]} 54. Rbc1 {[%emt 0:00:43]} Kg7 {[%emt 0:00:00]} 55. Rb1 {[%emt 0:00:27]} b5 {[%emt 0:01:09]} 56. Be2 {[%emt 0:00:53]} Rff8 {[%emt 0:00:49]} 57. Bxg4 {[%emt 0:00:46]} Kh8 {[%emt 0:00:44]} 58. Bf3 {[%emt 0:00:22]} Rg8+ {[%emt 0:00:36]} 59. Kf2 {[%emt 0:00:11]} Qe7 {[%emt 0:00:09]} 60. Rh1 {[%emt 0:00:00]} Rg7 {[%emt 0:00:00]} 61. Rbg1 {[%emt 0:01:20]} Rag8 {[%emt 0:00:28]} 62. Rxg7 {[%emt 0:00:23]} Qxg7 {[%emt 0:00:47]} 63. Kf1 {[%emt 0:00:21]} b4 {[%emt 0:00:38]} 64. a4 {[%emt 0:00:00]} Bc8 {[%emt 0:00:00]} 65. Qf2 {[%emt 0:00:44]} Qe7 {[%emt 0:00:44]} 66. Qc2 {[%emt 0:01:15]} Ba6+ {[%emt 0:00:39]} 67. Ke1 {[%emt 0:00:23]} Qg7 {[%emt 0:01:18]} 68. Qf2 {[%emt 0:00:23]} Qe7 {[%emt 0:00:58]} 69. Qc2 {[%emt 0:00:07]} Qg7 {[%emt 0:00:19]} 70. Qf2 {[%emt 0:00:02]} Bd3 {[%emt 0:00:57]} 71. Kd2 {[%emt 0:01:25]} Be4 {[%emt 0:00:00]} 72. Bxe4 {[%emt 0:00:08]} dxe4 {[%emt 0:00:02]} 73. Ke2 {[%emt 0:01:02]} Rd8 {[%emt 0:01:13]} 74. Rg1 {[%emt 0:00:33]} Qd7 {[%emt 0:00:21]} 75. Qh4 {[%emt 0:00:29]} Qd2+ {[%emt 0:00:12]} 76. Kf1 {[%emt 0:00:07]} Qd1+ {[%emt 0:00:06]} 77. Kg2 {[%emt 0:00:47]} Qf3+ {[%emt 0:00:16]} 78. Kh2 {[%emt 0:00:12]} Rd2+ {[%emt 0:00:02]} 0-1

[Event "Eurasia Open Cup 2019"]
[Site "Ekaterinburg"]
[Date "2019.08.05"]
[Round "5.29"]
[White "Pastukhov, Leonid"]
[Black "Radzhabov, Rodion"]
[Result "0-1"]
[ECO "A18"]
[WhiteElo "2215"]
[BlackElo "2404"]
[Annotator "NA"]
[PlyCount "90"]
[EventDate "2019.07.31"]
[EventType "swiss"]
[EventCountry "RUS"]
[SourceTitle "playchess.com"]
[Source "ChessBase"]
[SourceQuality "1"]
[TimeControl "5400+30"]

1. c4 {[%emt 0:00:00]} Nf6 {[%emt 0:00:00]} 2. Nc3 {[%emt 0:00:00]} e6 {[%emt 0:00:00]} 3. e4 {[%emt 0:00:00]} d5 {[%emt 0:00:00]} 4. e5 {[%emt 0:00:26]} Ne4 {[%emt 0:00:00]} 5. cxd5 {[%emt 0:08:24]} exd5 {[%emt 0:00:03]} 6. Nxe4 {[%emt 0:00:21]} dxe4 {[%emt 0:00:05]} 7. Qa4+ {[%emt 0:00:08]} Nc6 {[%emt 0:00:54]} 8. Qxe4 {[%emt 0:00:18]} Qd4 {[%emt 0:00:00]} 9. Qxd4 {[%emt 0:04:11]} Nxd4 {[%emt 0:00:00]} 10. Bd3 {[%emt 0:00:08]} Bf5 {[%emt 0:00:05]} 11. Bxf5 {[%emt 0:00:18]} Nxf5 {[%emt 0:00:01]} 12. Nf3 {[%emt 0:00:38]} O-O-O {[%emt 0:00:04]} 13. O-O {[%emt 0:00:31]} Bc5 {[%emt 0:04:45]} 14. Rb1 {[%emt 0:00:47]} Nd4 {[%emt 0:04:59]} 15. Ng5 {[%emt 0:01:20]} Rhe8 {[%emt 0:00:24]} 16. b4 {[%emt 0:01:02]} Bb6 {[%emt 0:00:35]} 17. a4 {[%emt 0:02:28]} a6 {[%emt 0:01:33]} 18. Bb2 {[%emt 0:06:26]} h6 {[%emt 0:00:39]} 19. Bxd4 {[%emt 0:09:18]} Bxd4 {[%emt 0:01:37]} 20. Nf3 {[%emt 0:00:36]} Bxe5 {[%emt 0:00:07]} 21. Rfc1 {[%emt 0:01:04]} Bf4 {[%emt 0:11:04]} 22. Rc2 {[%emt 0:00:00]} Rd3 {[%emt 0:00:00]} 23. Kf1 {[%emt 0:01:33]} g5 {[%emt 0:12:13]} 24. Rc3 {[%emt 0:22:52]} Rd5 {[%emt 0:15:09]} 25. d3 {[%emt 0:02:31]} Bd6 {[%emt 0:08:44]} 26. h3 {[%emt 0:02:30]} f5 {[%emt 0:02:25]} 27. Nd2 {[%emt 0:02:15]} b5 {[%emt 0:00:26]} 28. axb5 {[%emt 0:01:24]} axb5 {[%emt 0:00:16]} 29. g4 {[%emt 0:00:40]} Rd4 {[%emt 0:14:57]} 30. Rcb3 {[%emt 0:00:46]} fxg4 {[%emt 0:02:01]} 31. hxg4 {[%emt 0:00:06]} Rxg4 {[%emt 0:00:07]} 32. Ne4 {[%emt 0:00:00]} Rf8 {[%emt 0:01:41]} 33. Ra1 {[%emt 0:00:32]} Kb7 {[%emt 0:05:05]} 34. Rba3 {[%emt 0:06:00]} Kc6 {[%emt 0:10:34]} 35. Rc1+ {[%emt 0:05:14]} Kd7 {[%emt 0:00:34]} 36. Ra7 {[%emt 0:01:03]} Bf4 {[%emt 0:02:21]} 37. Rc5 {[%emt 0:01:06]} h5 {[%emt 0:01:04]} 38. Rxb5 {[%emt 0:01:15]} h4 {[%emt 0:02:01]} 39. f3 {[%emt 0:08:10]} Be3 {[%emt 0:00:00]} 40. Ke2 {[%emt 0:00:07]} Rxe4 {[%emt 0:01:19]} 41. dxe4 {[%emt 0:03:40]} Bxa7 {[%emt 0:00:35]} 42. Rxg5 {[%emt 0:00:00]} Rh8 {[%emt 0:00:00]} 43. Rg2 {[%emt 0:00:27]} h3 {[%emt 0:00:00]} 44. Rh2 {[%emt 0:00:04]} Bg1 {[%emt 0:00:27]} 45. Rh1 {[%emt 0:00:47]} h2 {[%emt 0:00:03]} 0-1

[Event "Eurasia Open Cup 2019"]
[Site "Ekaterinburg"]
[Date "2019.08.05"]
[Round "5.30"]
[White "Isaev, Anton"]
[Black "Bivol, Alina"]
[Result "1/2-1/2"]
[ECO "C01"]
[WhiteElo "2191"]
[BlackElo "2391"]
[Annotator "NA"]
[PlyCount "114"]
[EventDate "2019.07.31"]
[EventType "swiss"]
[EventCountry "RUS"]
[SourceTitle "playchess.com"]
[Source "ChessBase"]
[SourceQuality "1"]
[TimeControl "5400+30"]

1. e4 {[%emt 0:00:00]} e6 {[%emt 0:00:00]} 2. d4 {[%emt 0:00:31]} d5 {[%emt 0:00:00]} 3. exd5 {[%emt 0:00:59]} exd5 {[%emt 0:00:00]} 4. Nf3 {[%emt 0:00:30]} Nf6 {[%emt 0:00:00]} 5. Bg5 {[%emt 0:01:03]} Be7 {[%emt 0:03:30]} 6. Bd3 {[%emt 0:00:00]} Bg4 {[%emt 0:04:25]} 7. O-O {[%emt 0:01:44]} O-O {[%emt 0:00:29]} 8. Nbd2 {[%emt 0:00:00]} c5 {[%emt 0:06:25] C01: French: Exchange Variation} (8... Nbd7 9. c3 h6 10. Bxf6 Bxf6 11. Qb3 Nb6 12. Rae1 Bxf3 13. Nxf3 Re8 14. Rxe8+ Qxe8 15. Re1 Qa4 16. Qxa4 Nxa4 17. Bc2 Nb6 18. Bd3 Na4 19. Bc2 Nb6 20. Bd3 Na4 {½-½ (20) Ghaem Maghami,E (2523)-Akopian,V (2667) Dubai 2018}) 9. dxc5 {[%emt 0:00:38]} Bxc5 {[%emt 0:02:10]} 10. c3 {[%emt 0:00:00]} Bb6 {[%emt 0:05:49]} 11. Qa4 $146 {[%emt 0:02:12]} ({Predecessor:} 11. Qc2 h6 12. Bh4 Nc6 {½-½ (12) Fiorito,F (2470)-Zarnicki,P (2560) Villa Gesell 1997}) 11... Nbd7 {[%emt 0:03:22]} 12. Qxg4 {[%emt 0:08:10]} Nxg4 {[%emt 0:00:07]} 13. Bxd8 {[%emt 0:00:33]} Raxd8 {[%emt 0:00:34]} 14. Bf5 {[%emt 0:04:11]} Ngf6 {[%emt 0:02:36]} 15. Nb3 {[%emt 0:08:53]} g6 {[%emt 0:00:34]} 16. Bc2 {[%emt 0:03:55]} Rfe8 {[%emt 0:00:44]} 17. Rfe1 {[%emt 0:02:50]} Ne4 {[%emt 0:02:00]} 18. Nfd4 {[%emt 0:00:42]} Ndf6 {[%emt 0:00:43]} 19. a4 {[%emt 0:03:59]} a6 {[%emt 0:00:15]} 20. Bd3 {[%emt 0:05:14]} Nd6 {[%emt 0:00:36]} 21. Nd2 {[%emt 0:00:23]} Nd7 {[%emt 0:04:48]} 22. Kf1 {[%emt 0:06:33]} Ne5 $11 {[%emt 0:00:53]} 23. Be2 {[%emt 0:06:14]} Bxd4 {[%emt 0:02:33]} 24. cxd4 {[%emt 0:00:09]} Nc6 {[%emt 0:00:11]} 25. Nb3 {[%emt 0:03:52]} Nc4 {[%emt 0:01:47]} 26. Bxc4 {[%emt 0:04:43]} Rxe1+ {[%emt 0:04:33]} 27. Rxe1 {[%emt 0:00:21]} dxc4 {[%emt 0:00:03]} 28. Nc5 {[%emt 0:00:35]} b6 {[%emt 0:07:22]} 29. Nxa6 {[%emt 0:00:41]} Rxd4 {[%emt 0:00:03]} 30. Ke2 {[%emt 0:06:44]} c3 {[%emt 0:24:38]} 31. bxc3 {[%emt 0:01:55]} Rxa4 {[%emt 0:00:04]} 32. Nc7 {[%emt 0:00:00]} Ne5 {[%emt 0:00:27]} 33. h3 {[%emt 0:04:25]} Ra2+ {[%emt 0:02:51]} 34. Ke3 {[%emt 0:01:39]} Ra5 {[%emt 0:02:07]} 35. Rd1 {[%emt 0:01:05]} Nc4+ {[%emt 0:00:14]} 36. Kd4 {[%emt 0:00:47]} Nd6 {[%emt 0:02:30]} 37. Rb1 {[%emt 0:00:22]} Nf5+ {[%emt 0:01:13]} 38. Kd3 {[%emt 0:00:45]} Rc5 {[%emt 0:03:47]} 39. Na6 {[%emt 0:01:54]} Rc6 {[%emt 0:01:17]} 40. g4 {[%emt 0:02:23]} Ne7 {[%emt 0:00:11]} 41. c4 {[%emt 0:01:54]} Rd6+ {[%emt 0:01:58]} 42. Ke3 {[%emt 0:00:53]} g5 {[%emt 0:00:14]} 43. Nc7 {[%emt 0:03:02]} Rh6 {[%emt 0:04:59]} 44. Nd5 {[%emt 0:02:30]} Nc8 {[%emt 0:00:30]} 45. f3 {[%emt 0:01:22]} Kg7 {[%emt 0:00:50]} 46. Rb3 {[%emt 0:01:11]} Rxh3 {[%emt 0:01:56]} 47. Nxb6 {[%emt 0:00:13]} Ne7 {[%emt 0:00:31]} 48. Nd5 {[%emt 0:00:55]} Nc6 {[%emt 0:00:24]} 49. c5 {[%emt 0:01:34]} h5 {[%emt 0:00:58]} 50. gxh5 {[%emt 0:00:59]} g4 {[%emt 0:00:00]} 51. Ke4 {[%emt 0:02:18]} Rxh5 {[%emt 0:00:45]} 52. f4 {[%emt 0:01:59]} f5+ {[%emt 0:01:02]} 53. Kd3 {[%emt 0:00:08]} Rh3+ {[%emt 0:00:57]} 54. Ne3 {[%emt 0:00:05]} g3 {[%emt 0:00:48]} 55. Rb7+ {[%emt 0:03:02]} Kf8 {[%emt 0:01:24]} 56. Rb1 {[%emt 0:01:27]} Kf7 {[%emt 0:01:04]} 57. Kc4 {[%emt 0:00:09]} Rh4 {[%emt 0:01:52]} 1/2-1/2

[Event "Eurasia Open Cup 2019"]
[Site "Ekaterinburg"]
[Date "2019.08.05"]
[Round "5.31"]
[White "Kanter, Eduard"]
[Black "Pogorelskikh, Sofia"]
[Result "1/2-1/2"]
[ECO "E94"]
[WhiteElo "2384"]
[BlackElo "2189"]
[Annotator "NA"]
[PlyCount "89"]
[EventDate "2019.07.31"]
[EventType "swiss"]
[EventCountry "RUS"]
[SourceTitle "playchess.com"]
[Source "ChessBase"]
[SourceQuality "1"]
[TimeControl "5400+30"]

1. d4 {[%emt 0:00:00]} Nf6 {[%emt 0:00:00]} 2. c4 {[%emt 0:00:00]} g6 {[%emt 0:00:00]} 3. Nc3 {[%emt 0:00:00]} Bg7 {[%emt 0:00:00]} 4. e4 {[%emt 0:00:00]} d6 {[%emt 0:00:00]} 5. Nf3 {[%emt 0:00:00]} O-O {[%emt 0:00:00]} 6. Be2 {[%emt 0:00:00]} e5 {[%emt 0:00:00]} 7. O-O {[%emt 0:00:00]} exd4 {[%emt 0:00:06]} 8. Nxd4 {[%emt 0:00:00]} Re8 {[%emt 0:00:22]} 9. f3 {[%emt 0:02:44]} Nc6 {[%emt 0:00:34]} 10. Be3 {[%emt 0:00:54]} Nh5 {[%emt 0:01:54]} 11. Nxc6 {[%emt 0:00:24]} bxc6 {[%emt 0:00:13]} 12. Qd2 {[%emt 0:00:04]} Be5 {[%emt 0:11:34]} 13. f4 {[%emt 0:42:05]} Bxc3 {[%emt 0:00:33]} 14. Qxc3 {[%emt 0:00:53]} Nf6 $1 {[%emt 0:07:24]} 15. e5 $14 {[%emt 0:01:12]} Ne4 {[%emt 0:18:59]} 16. Qc2 {[%emt 0:04:18]} d5 {[%emt 0:04:50]} 17. cxd5 {[%emt 0:06:18]} cxd5 {[%emt 0:00:25]} 18. Rac1 {[%emt 0:00:36]} Be6 {[%emt 0:08:36]} 19. Bb5 {[%emt 0:03:09]} Bd7 {[%emt 0:07:08]} 20. Bd3 {[%emt 0:01:30]} Bf5 {[%emt 0:01:44]} 21. Rfd1 {[%emt 0:01:15]} Qb8 {[%emt 0:07:22]} 22. b3 {[%emt 0:10:32]} a5 {[%emt 0:03:09]} 23. Qc6 {[%emt 0:03:59]} Qb4 {[%emt 0:07:08]} 24. Bf1 {[%emt 0:00:26]} a4 {[%emt 0:03:17]} 25. Rd4 {[%emt 0:02:12]} Qb6 {[%emt 0:01:32]} 26. Qxb6 {[%emt 0:04:27]} cxb6 {[%emt 0:00:05]} 27. Rxa4 {[%emt 0:00:00]} Rxa4 {[%emt 0:01:27]} 28. bxa4 {[%emt 0:00:00]} Bd7 {[%emt 0:02:22]} 29. Bb5 {[%emt 0:02:45]} Bxb5 {[%emt 0:01:15]} 30. axb5 {[%emt 0:00:05]} Ra8 {[%emt 0:00:13]} 31. Bxb6 {[%emt 0:10:05]} Rxa2 {[%emt 0:00:37]} 32. Bd4 {[%emt 0:00:49]} Ra4 {[%emt 0:03:17]} 33. b6 {[%emt 0:00:13]} Rb4 {[%emt 0:05:40]} 34. h3 {[%emt 0:00:05]} Kg7 {[%emt 0:01:29]} 35. Rd1 {[%emt 0:04:13]} Kf8 {[%emt 0:01:23]} 36. Rd3 {[%emt 0:01:00]} Ke7 {[%emt 0:00:25]} 37. Be3 {[%emt 0:00:52]} Ke6 {[%emt 0:01:07]} 38. g4 {[%emt 0:00:28]} g5 {[%emt 0:00:46]} 39. fxg5 {[%emt 0:00:18]} Kxe5 {[%emt 0:00:12]} 40. Kg2 {[%emt 0:00:09]} Nd6 {[%emt 0:01:26]} 41. Bc5 {[%emt 0:01:45]} Rb5 {[%emt 0:01:14]} 42. Bg1 {[%emt 0:00:02]} Nc4 {[%emt 0:00:02]} 43. Rf3 {[%emt 0:00:26]} Nxb6 {[%emt 0:00:50]} 44. Rxf7 {[%emt 0:00:24]} d4 {[%emt 0:00:02]} 45. Rf5+ {[%emt 0:00:36]} 1/2-1/2